Cogmind - Beta 15 --- EXPLORER MODE // 2025.09.05 @ 19:55:29 Player: Sudo_Nimh Result: Destroyed self with Sigix Terminator Performance ------------- Evolutions (7) 3500 Regions Visited (21) 4200 Robots Destroyed (410) 2050 Value Destroyed (20573) 20573 Prototype IDs (20) 400 Alien Tech Used (3) 600 Bonus (7178) 7178 TOTAL SCORE: 38501 Bonus ------- High Alert Combat Kills 938 Follower Combat Kills 1370 Entered Garrisons 600 Used RIF Installer 1500 Entered DSFs 500 Met Zhirov 300 Met Sigix 2000 Friendly Fire -30 Cogmind --------- Core Integrity 0/1300 Matter 82/300 Energy 83/100 System Corruption 39% Temperature Cool (30) Movement Core (350) Ox6 Location -3/Quarantine Parts ------- > --- POWER (2) -------- (None) > --- PROPULSION (5) --- (None) > --- UTILITY (11) ----- Large Storage Unit Focal Shield Advanced Hacking Suite Improved System Shield > --- WEAPON (4) ------- (None) > --- INVENTORY (15) --- Antimatter Reactor Particle Reactor Advanced Force Field Subatomic Replicator Quantum Rifle Advanced Remote Datajack Sigix Containment Pod Peak State ------------ > --- POWER ------------ Antimatter Reactor Matter Drive > --- PROPULSION ------- Medium Treads Medium Treads Biometal Medium Treads Centrium Heavy Treads > --- UTILITY ---------- Advanced Heat Sink Advanced Heat Sink Large Storage Unit Medium Matter Pod Advanced Targeting Computer Focal Shield Focal Shield Focal Shield Advanced Force Field Advanced Hacking Suite High-powered Tractor Beam > --- WEAPON ----------- Linear Accelerator Enhanced Hardcell Cannon Sigix Terminator > --- INVENTORY -------- Reinforced Antimatter Reactor Particle Reactor Particle Reactor Quantum Rifle Railgun Railgun Enhanced Hardcell Cannon Enhanced Hardcell Cannon Enhanced Hardcell Cannon Advanced Remote Datajack [Rating: 155] Favorites ----------- Power Light Nuclear Core Engine Light Angular Momentum Engine Power Core Light Nuclear Core Reactor Antimatter Reactor Propulsion Light Treads Treads Light Treads Wheel Armored Huge Wheel Hover Unit Cooled Aerolev Unit Utility Advanced Heat Sink Device Advanced Heat Sink Storage Large Storage Unit Processor Advanced Targeting Computer Hackware System Shield Protection Improved Light Armor Plating Weapon KE Penetrator Energy Gun Arc Projector Energy Cannon Subdweller Beam Cannon Ballistic Gun KE Penetrator Ballistic Cannon Magnetic Acceleration Cannon Launcher Grenade Launcher Special Weapon Improved Remote Datajack Slashing Weapon Ripper Build | -11 -10 -10 -8 -7 -7 -7 -7 -6 -6 -6 -6 -5 -5 -5 -5 -5 -5 -4 -4 -3 -3 ------- Run | Yrd Mat Sub Mat Fac Gar Fac DSF Fac Gar Fac Gar Fac Was Fac Upp Upp Zhi Pro Fac Res Qua Slots Evolved 15 | . 1 . 4 2 . . . 2 . . . 2 . . . . . . 2 2 . Power 1 | . . . 1 . . . . . . . . . . . . . . . . . . Propulsion 3 | . . . . 1 . . . 1 . . . . . . . . . . . 1 . Utility 9 | . 1 . 2 1 . . . 1 . . . 2 . . . . . . 1 1 . Weapon 2 | . . . 1 . . . . . . . . . . . . . . . 1 . . Parts Attached 225 | 7 6 11 23 5 10 . 1 8 12 9 10 6 . 24 4 9 1 . 14 51 14 Power 37 | 1 . 4 2 3 1 . . 1 2 1 2 . . 5 1 2 1 . 1 7 3 Engine 9 | 1 . 4 1 . . . . . . . . . . . 1 2 . . . . . Core 15 | . . . 1 3 1 . . 1 2 1 1 . . 5 . . . . . . . Reactor 13 | . . . . . . . . . . . 1 . . . . . 1 . 1 7 3 Propulsion 39 | 2 . . 4 1 2 . . 2 2 4 . 3 . 4 1 1 . . 4 7 2 Treads 35 | 2 . . 4 . . . . 2 2 3 . 3 . 4 1 1 . . 4 7 2 Leg . | . . . . . . . . . . . . . . . . . . . . . . Wheel 2 | . . . . 1 1 . . . . . . . . . . . . . . . . Hover 2 | . . . . . 1 . . . . 1 . . . . . . . . . . . Flight . | . . . . . . . . . . . . . . . . . . . . . . Utility 80 | 2 4 2 9 1 3 . . 2 6 2 2 2 . 7 2 4 . . 7 21 4 Device 39 | . 1 1 6 1 . . . . 4 . . 1 . 3 1 3 . . 3 12 3 Storage 12 | 1 2 . . . 1 . . . . 1 . . . . 1 . . . 2 4 . Processor 5 | 1 . . 1 . . . . 1 . . . . . . . 1 . . . 1 . Hackware 9 | . . . 1 . . . . 1 1 . 2 1 . 1 . . . . 1 . 1 Protection 15 | . 1 1 1 . 2 . . . 1 1 . . . 3 . . . . 1 4 . Artifact . | . . . . . . . . . . . . . . . . . . . . . . Weapon 69 | 2 2 5 8 . 4 . 1 3 2 2 6 1 . 8 . 2 . . 2 16 5 Energy Gun 7 | . . 2 3 . . . . . . . 1 . . . . . . . . 1 . Energy Cannon 1 | . . . 1 . . . . . . . . . . . . . . . . . . Ballistic Gun 38 | 2 2 2 1 . 1 . 1 1 2 2 4 . . 3 . 2 . . 2 12 1 Ballistic Cannon 12 | . . . 1 . 1 . . 1 . . . . . 3 . . . . . 3 3 Launcher 7 | . . 1 . . 2 . . . . . 1 1 . 1 . . . . . . 1 Special Weapon 3 | . . . 1 . . . . 1 . . . . . 1 . . . . . . . Impact Weapon . | . . . . . . . . . . . . . . . . . . . . . . Slashing Weapon 1 | . . . 1 . . . . . . . . . . . . . . . . . . Piercing Weapon . | . . . . . . . . . . . . . . . . . . . . . . Special Melee Weapon . | . . . . . . . . . . . . . . . . . . . . . . Unidentified Prototypes 8 | . . . . . . . . . . 1 . . . . . . 1 . 1 2 3 Parts Lost 76 | . . 4 6 . . . . . 5 . 5 . 2 4 . 6 . . 1 21 22 Power 9 | . . 1 1 . . . . . 2 . . . . 1 . . . . . 1 3 Propulsion 13 | . . . 1 . . . . . . . 1 . 1 . . 1 . . . 5 4 Utility 25 | . . 1 1 . . . . . 2 . . . 1 1 . 3 . . 1 8 7 Weapon 29 | . . 2 3 . . . . . 1 . 4 . . 2 . 2 . . . 7 8 Highest Loss Streak 21 | . . 4 4 . . . . . 3 . 2 . 2 1 . 3 . . 1 3 21 To Critical Strikes 1 | . . . . . . . . . . . . . . . . . . . . 1 . Average Backups 7 | . 3 6 8 12 12 13 12 10 11 14 12 11 8 2 2 5 5 7 5 8 10 Power 1 | . . . 2 3 2 2 2 2 2 1 1 1 . . . . . . . 2 3 Propulsion . | . . . . . 2 2 2 . 1 1 . . . . . . . . . . . Utility 2 | . . 3 2 3 3 4 5 5 3 6 9 9 6 . 1 1 2 4 2 1 . Weapon 2 | . 1 2 3 3 3 4 2 2 3 3 1 . 1 1 1 3 3 3 1 3 4 Tool/Special . | . . . . . . . . . . . . . . . . . . . . . . Unused Backups 42 | . . 3 1 6 4 . . 1 1 5 . . 6 3 . . . . 1 7 4 Power 13 | . . 1 . 2 . . . 1 1 2 . . 1 . . . . . . 4 1 Propulsion 5 | . . . . . 3 . . . . . . . . 2 . . . . . . . Utility 14 | . . 1 1 2 . . . . . 2 . . 5 . . . . . 1 1 1 Weapon 5 | . . 1 . 2 . . . . . 1 . . . . . . . . . 1 . Tool/Special 5 | . . . . . 1 . . . . . . . . 1 . . . . . 1 2 Average Slot Usage (%) 87 | . 92 93 87 91 90 92 92 86 84 93 96 94 66 78 87 84 88 88 89 82 89 Engine 3 | . 12 11 9 5 . . . . . . . . . . 4 9 9 5 5 . . Core 5 | . . . 5 8 13 14 14 12 9 12 10 5 2 9 5 1 . . . . . Reactor 1 | . . . . . . . . . . . 1 5 4 . . . 1 5 5 8 8 Treads 14 | . 24 25 13 12 1 . . 11 12 18 24 18 10 8 15 14 16 16 14 13 16 Device 17 | . 1 . 21 20 15 14 14 12 16 17 12 16 16 22 27 25 27 27 20 19 26 Storage 8 | . 12 12 8 7 7 7 7 6 6 6 12 11 7 5 5 8 11 11 11 11 8 Processor 1 | . 12 6 . . . . . . . . . . . . . . . . . 2 3 Hackware 5 | . . . 2 7 7 7 7 11 12 12 9 15 13 9 5 1 . . 4 4 6 Protection 6 | . 3 11 4 7 11 14 14 12 7 6 6 5 2 8 5 5 5 5 7 2 . Energy Gun 1 | . . 4 6 7 7 7 4 . . . 1 . . . . . . . . . 1 Ballistic Gun 12 | . 25 16 8 7 6 7 9 13 11 12 14 10 . 2 15 15 16 16 19 15 6 Ballistic Cannon 3 | . . . 1 6 6 7 7 4 6 4 . . . 9 . . . . . 2 9 Peak Build Rating 155 | 7 8 16 39 47 52 52 52 74 85 85 78 91 92 93 94 96 98 98 113 139 155 Average Rating 71 | 4 7 12 28 39 48 52 51 71 76 81 73 85 69 80 91 91 95 98 109 119 135 On Entrance 64 | . 7 8 13 34 46 52 52 52 72 85 77 71 91 41 90 92 95 98 98 113 121 Naked Turns . | . . . . . . . . . . . . . . . . . . . . . . Heaviest Build 125 | 17 32 49 64 52 63 63 63 65 65 64 69 70 68 66 72 85 88 88 124 125 119 Greatest Support 171 | 40 40 40 43 40 44 44 44 150 150 150 120 130 130 140 125 125 125 125 130 170 171 Greatest Overweight (x) 28 | . 1 1 14 1 1 1 1 1 . . . . . 2 . . . . 2 1 28 Average Overweight (x) . | . . . 1 1 1 1 1 . . . . . . . . . . . . . . Largest Inventory Capacity 25 | 10 20 15 15 15 15 15 15 15 15 15 15 15 15 5 10 10 10 10 25 15 15 Average Capacity 12 | 8 14 15 15 15 15 15 15 15 15 15 15 15 9 5 9 10 10 10 13 13 15 Most Carried 15 | 2 6 14 15 15 15 15 15 15 14 15 15 14 12 5 4 9 9 8 9 14 14 Average Carried 8 | . 3 6 8 12 14 15 14 10 11 14 12 11 8 3 3 6 6 8 6 8 11 Final Capacity 15 | 10 15 15 15 15 15 15 15 15 15 15 15 15 5 5 10 10 10 10 10 15 15 Final Carried 15 | . 6 8 12 12 15 15 15 11 14 13 13 12 5 3 3 6 8 8 5 10 8 Class Distribution -------------------- 51% | Hacker-Tank 20% | Hacker-Mutant 16% | Scavenger-Tank 5% | Hacker-Gunner Dominant Class ---------------- Hacker-Mutant | -10/Materials Hacker-Mutant | -10/Subcaves Hacker-Tank | -8/Materials Hacker-Tank | -7/Factory Hacker-Tank | -7/Garrison Hacker-Tank | -7/Factory Hacker-Tank | -7/DSF Scavenger-Tank | -6/Factory Hacker-Tank | -6/Garrison Hacker-Gunner | -6/Factory Hacker-Gunner | -6/Garrison Hacker-Tank | -5/Factory Hacker-Mutant | -5/Waste Hacker-Tank | -5/Factory Hacker-Tank | -5/Upper Caves Hacker-Tank | -5/Upper Caves Hacker-Tank | -5/Zhirov Hacker-Tank | -4/Proximity Caves Hacker-Tank | -4/Factory Scavenger-Tank | -3/Research Scavenger-Tank | -3/Quarantine Resources | -11 -10 -10 -8 -7 -7 -7 -7 -6 -6 -6 -6 -5 -5 -5 -5 -5 -5 -4 -4 -3 -3 ----------- Run | Yrd Mat Sub Mat Fac Gar Fac DSF Fac Gar Fac Gar Fac Was Fac Upp Upp Zhi Pro Fac Res Qua Matter Collected 17224 | 220 239 554 387 133 657 . 177 467 1021 604 1160 80 40 2077 647 761 . 91 519 6174 1216 Remotely 705 | . . . . . . . . . . . . . . . . . . . . . 705 Salvage Created 20702 | . 346 491 612 213 812 . 327 467 1222 741 1441 . . 2056 943 1091 . 225 699 8056 960 Parts 992 | . 27 30 30 12 29 . 11 30 61 44 73 . . 116 30 39 . 9 36 377 38 Haulers Intercepted 6 | . . . . . . . . . . . . . . 2 . . . . . 4 . Recyclers Shooed 9 | . . . . . . . . . . . . . . 3 . . . . . 6 . Parts Field Recycled . | . . . . . . . . . . . . . . . . . . . . . . Retrieved Matter . | . . . . . . . . . . . . . . . . . . . . . . Parts Self-Destructed . | . . . . . . . . . . . . . . . . . . . . . . Prevented . | . . . . . . . . . . . . . . . . . . . . . . Kills | -11 -10 -10 -8 -7 -7 -7 -7 -6 -6 -6 -6 -5 -5 -5 -5 -5 -5 -4 -4 -3 -3 ------- Run | Yrd Mat Sub Mat Fac Gar Fac DSF Fac Gar Fac Gar Fac Was Fac Upp Upp Zhi Pro Fac Res Qua Combat Hostiles Destroyed 306 | . 9 12 10 4 4 . 7 10 23 11 24 . . 41 12 21 . 3 9 93 13 Melee 1 | . . . 1 . . . . . . . . . . . . . . . . . . Guns 228 | . 9 10 5 3 3 . 1 7 13 10 21 . . 12 12 21 . 3 9 85 4 Cannons 64 | . . . 4 1 1 . 6 3 10 1 . . . 23 . . . . . 8 7 AOE 13 | . . 2 . . . . . . . . 3 . . 6 . . . . . . 2 Classes Destroyed 21 | . 4 1 3 2 . . 2 1 2 . . . . 2 . . . . 1 2 1 Worker 34 | . 1 . . . . . . 2 . . . . . 6 . . . . 1 24 . Builder 22 | . . . . . . . . . . . . . . 6 . . . . 1 13 2 Tunneler 3 | . . . . . . . . . . . . . . . . . . . 1 2 . Hauler 6 | . . . . . . . . . . . . . . 2 . . . . . 4 . Recycler 12 | . . . 1 . . . . . . . . . . 2 . . . . . 5 4 Mechanic 2 | . . . 1 . . . . . . . . . . . . . . . . 1 . Operator 4 | . . . . . . . . 1 . 1 . . . . . . . . 1 . 1 Watcher 25 | . 3 . 1 . . . . 1 . 3 . . . 6 . . . . 3 8 . Swarmer 58 | . 4 1 . . 2 . . 4 . 3 1 . . 14 2 7 . 3 . 16 1 Grunt 88 | . 5 . 5 2 2 . 5 2 9 2 7 . . 7 8 6 . . . 26 2 Brawler 10 | . . . . 1 . . . . 1 . 1 . . 3 . . . . . 3 1 Duelist 7 | . . . . . . . . . 1 1 1 . . 1 . . . . . 3 . Protector 2 | . . . . . . . . . . . . . . . . . . . . 2 . Sentry 35 | . . . 5 . . . . 1 3 2 5 . . 3 1 2 . . 2 11 . Specialist 7 | . . . . . . . 1 . . . . . . . . . . . . 3 3 Hunter 29 | . . . . . . . 1 1 6 1 3 . . 1 1 2 . . . 10 3 Programmer 47 | . . . . 1 . . . 2 2 2 6 . . 11 . . . . 7 16 . Heavy 1 | . . . . . . . . . . . . . . . . . . . . 1 . Behemoth 4 | . . . . . . . . . 1 . . . . 1 . . . . . 2 . Lightning 2 | . . . . . . . . . . . . . . . . . . . . . 2 Alpha 7 1 | . . . . . . . . . . . . . . . . . . . . . 1 Subdweller 11 | . . 11 . . . . . . . . . . . . . . . . . . . Packrat 1 | . . . . . . . . . . . . . . . 1 . . . . . . Thug 1 | . . . . . . . . . . . . . . . . 1 . . . . . Savage 3 | . . . . . . . . . . . . . . . . 3 . . . . . Best Kill Streak 13 | . 3 2 4 2 1 . 3 3 9 2 4 . . 6 4 9 . 3 3 13 4 Combat Bots Only 9 | . 2 2 4 2 1 . 3 3 9 2 4 . . 4 4 9 . 3 2 9 3 Max Kills in Single Turn 3 | . 2 2 2 1 1 . 1 2 2 1 2 . . 2 2 2 . 2 3 3 3 Gunslinging 1 | . . . . . . . . 1 . . . . . . 1 . . 1 1 1 . Exploded 2 | . . 1 . . . . . . . . 2 . . 1 . . . . . . 2 Melee 1 | . . . 1 . . . . . . . . . . . . . . . . . . Uniques/NPCs Destroyed . | . . . . . . . . . . . . . . . . . . . . . . Combat | -11 -10 -10 -8 -7 -7 -7 -7 -6 -6 -6 -6 -5 -5 -5 -5 -5 -5 -4 -4 -3 -3 -------- Run | Yrd Mat Sub Mat Fac Gar Fac DSF Fac Gar Fac Gar Fac Was Fac Upp Upp Zhi Pro Fac Res Qua Hostile Shots Fired 3440 | . 54 106 137 19 40 . 21 40 297 61 278 . 7 206 84 80 . 7 44 1425 534 Missed 1026 | . 13 38 26 2 12 . 7 12 80 26 98 . . 73 22 16 . 1 11 473 116 Hits 2414 | . 41 68 111 17 28 . 14 28 217 35 180 . 7 133 62 64 . 6 33 952 418 Melee 41 | . . . . 3 . . . . 2 . 6 . 7 4 . 7 . . . 9 3 Projectile 2373 | . 41 68 111 14 28 . 14 28 215 35 174 . . 129 62 57 . 6 33 943 415 AOE 4 | . . . . . . . . . . . . . . 2 . . . . 2 . . Critical Strikes 112 | . 1 1 2 1 . . 1 1 8 . 2 . 5 12 3 6 . . 4 48 17 Actively Blocked 2 | . . . . . . . . . . . . . . . . . . . 2 . . Part Disruptions 9 | . . . . . . . . . . . . . . . . . . . 2 3 4 Actively Blocked 1 | . . . . . . . . . . . . . . . . . . . 1 . . Damage Taken 20740 | . 260 676 1109 145 73 . 101 154 1457 431 1243 . 127 1270 528 643 . 22 400 7204 4897 Core 2084 | . 48 117 207 3 . . 5 16 114 14 93 . 20 50 30 36 . . . 378 953 Absorbed by Shields 5997 | . . . 36 73 85 . 56 92 388 . . . . 213 120 135 . 11 57 4432 299 Reduced by Siege Mode 351 | . . . . . . . . . 63 . . . . 16 . . . . . 42 230 Redirected to Shielding 121 | . . . . . . . . . . . . . . . . . . . 121 . . Ignored by Resistances 18999 | . 174 414 660 132 184 . 155 201 1770 255 818 . 164 1270 536 702 . 55 313 7671 3525 Regen/Repaired (Parts) 161 | . 62 . 84 . . . . . . . . . . 15 . . . . . . . Core Remaining (%) 78 | 100 . 34 62 . . . 98 . . . 72 . . . . . . 86 100 . . Volleys Fired 964 | . 29 60 33 9 50 . 13 30 64 28 88 . 1 99 37 43 . 4 30 286 60 Largest 4 | . 2 2 3 3 3 . 3 3 3 3 3 . 1 3 3 3 . 3 4 4 4 Hottest 236 | . 40 95 190 115 123 . 123 100 114 114 135 . 7 138 99 99 . 99 132 177 236 Shots Fired 2906 | . 59 108 83 27 149 . 38 80 191 82 194 . 1 243 111 123 1 12 118 1088 198 Gun 2297 | . 59 102 59 18 100 . 26 59 127 61 177 . . 71 111 123 1 12 118 1001 72 Cannon 565 | . . . 21 9 49 . 12 16 64 21 . . . 161 . . . . . 87 125 Launcher 26 | . . 6 . . . . . . . . 8 . . 11 . . . . . . 1 Special 18 | . . . 3 . . . . 5 . . 9 . 1 . . . . . . . . Kinetic 2715 | . 59 71 45 18 99 . 31 75 191 82 166 . . 232 111 123 1 12 118 1088 193 Thermal 47 | . . 8 34 . . . . . . . . . . . . . . . . . 5 Explosive 19 | . . 6 . . . . . . . . 8 . . 5 . . . . . . . Electromagnetic 110 | . . 23 4 9 50 . 7 . . . 11 . . 6 . . . . . . . Robot Hit Streak 85 | . 33 41 21 15 60 . 24 36 54 56 85 . 7 71 28 43 . 12 51 79 77 Robot Miss Streak 3 | . 2 2 1 1 1 . 1 2 2 1 2 . . 1 1 1 . . 2 2 3 Penetration Max 2 | . . . . . 1 . . . 1 1 1 . . 1 1 1 . . 1 2 1 Secondary Targets 42 | . 3 2 . . . . . 1 . 1 2 . . . 1 3 . 1 1 27 . Max Gunslinging Chain 2 | . 1 1 . . . . . 1 . 1 1 . . . 1 1 . 1 1 2 . Shots Hit Robots 2275 | . 47 72 64 23 121 . 34 60 146 62 157 . 1 186 88 92 . 11 84 878 149 Core Hits 933 | . 23 27 25 9 42 . 15 25 65 27 79 . . 97 33 47 . 5 30 340 44 Critical Kills 31 | . 1 . . . . . . 1 4 8 5 . . 2 1 1 . . . 8 . Critical Parts Destroyed 58 | . 2 . . . . . 2 . 2 9 11 . . 1 4 3 . 1 4 18 1 Critical Strikes 145 | . 3 1 1 . 2 . 3 2 10 18 19 . . 23 5 5 . 1 4 39 9 Burn 1 | . . 1 . . . . . . . . . . . . . . . . . . . Destroy 99 | . 3 . . . . . 2 1 6 18 18 . . 3 5 5 . 1 4 32 1 Blast 43 | . . . . . 2 . 1 1 4 . . . . 20 . . . . . 7 8 Corrupt 1 | . . . . . . . . . . . 1 . . . . . . . . . . Sever 1 | . . . 1 . . . . . . . . . . . . . . . . . . Melee Attacks 4 | . . . 4 . . . . . . . . . . . . . . . . . . Impact . | . . . . . . . . . . . . . . . . . . . . . . Slashing 4 | . . . 4 . . . . . . . . . . . . . . . . . . Piercing . | . . . . . . . . . . . . . . . . . . . . . . Sneak Attacks 1 | . . . 1 . . . . . . . . . . . . . . . . . . Combat Hostiles . | . . . . . . . . . . . . . . . . . . . . . . Follow-up Attacks . | . . . . . . . . . . . . . . . . . . . . . . Damage Inflicted 61916 | . 585 1088 1379 363 2184 . 662 1294 3207 802 2836 . . 6626 2086 2446 . 270 2394 25465 8229 Guns 42412 | . 578 864 765 211 1266 . 414 918 2055 439 2528 . . 1634 2086 2414 . 270 2343 22159 1468 Cannons 14194 | . . . 436 150 918 . 248 340 1152 324 . . . 4081 . . . . . 2739 3806 Explosions 4369 | . . 224 . . . . . . . . 308 . . 864 . . . . 23 . 2950 Melee 156 | . . . 156 . . . . . . . . . . . . . . . . . . Ramming 763 | . 7 . . 2 . . . 36 . 39 . . . 47 . 32 . . 28 567 5 Kinetic 54736 | . 578 494 565 290 1699 . 600 1258 3207 763 2306 . . 5715 2086 2414 . 270 2343 24898 5250 Thermal 3771 | . . 168 629 . . . . . . . . . . . . . . . . . 2974 Explosive 1229 | . . 224 . . . . . . . . 308 . . 674 . . . . 23 . . Electromagnetic 1261 | . . 202 29 71 485 . 62 . . . 222 . . 190 . . . . . . . Impact . | . . . . . . . . . . . . . . . . . . . . . . Slashing 156 | . . . 156 . . . . . . . . . . . . . . . . . . Piercing . | . . . . . . . . . . . . . . . . . . . . . . Highest Corruption 39 | . 5 5 . 1 1 1 1 . . . . . 9 16 16 8 8 8 4 22 39 Average Corruption 8 | . 3 5 . 1 1 1 1 . . . . . 6 12 6 7 8 8 3 16 21 Corruption Purged 15 | . . . . . . . . . . . . . . . 10 . . . . . 5 Corruption Blocked . | . . . . . . . . . . . . . . . . . . . . . . Effects 552 | . 11 68 . 6 13 . 5 . . . . . 7 126 66 25 10 14 17 137 47 Message Errors 115 | . 3 16 . 1 1 . . . . . . . 3 23 13 6 2 2 7 28 10 Matter Fused 126 | . 2 16 . 2 5 . 1 . . . . . 3 31 20 7 1 3 1 26 8 Heat Flow Errors 49 | . 1 4 . . 1 . . . . . . . . 12 4 1 1 2 2 15 6 Energy Discharges 60 | . 2 7 . 1 2 . 1 . . . . . . 12 7 4 1 3 . 18 2 Parts Rejected 8 | . . 2 . . 1 . . . . . . . . 3 1 . . . . 1 . Parts Fused 12 | . . 3 . . . . . . . . . . . 1 . 1 1 . 1 5 . Data Loss (minor) 69 | . 1 9 . 1 2 . 1 . . . . . 1 27 6 3 3 3 1 9 2 Data Loss (major) 27 | . 1 5 . . 1 . 1 . . . . . . 5 4 1 . 1 1 5 2 Misfires 26 | . 1 5 . . . . . . . . . . . 7 5 . 1 . 1 4 2 Alerts 8 | . . . . 1 . . . . . . . . . 3 1 . . . . 1 2 Misdirections 5 | . . . . . . . . . . . . . . . . . . . . 3 2 Weapon Failures 47 | . . 1 . . . . 1 . . . . . . 2 5 2 . . 3 22 11 Overload Shots . | . . . . . . . . . . . . . . . . . . . . . . Overflow Damage 585 | . . . 22 . . . . 35 3 14 . . . 111 . . . . 3 87 310 Projectiles 468 | . . . . . . . . 35 3 14 . . . 104 . . . . . 60 252 Explosions 65 | . . . . . . . . . . . . . . 7 . . . . . . 58 Melee 52 | . . . 22 . . . . . . . . . . . . . . . 3 27 . Knockbacks 83 | . . . . 1 2 . 1 5 11 1 . . . 20 . . . . 1 18 23 Impact 7 | . . . . . . . . . . . . . . . . . . . 1 6 . Kinetic 74 | . . . . 1 2 . 1 5 11 1 . . . 20 . . . . . 12 21 Secondary 2 | . . . . . . . . . . . . . . . . . . . . . 2 Self-Inflicted Damage 750 | . . 6 . . . . . . . . 22 . . 92 . . . . . . 630 Shots 7 | . . 2 . . . . . . . . 1 . . 3 . . . . . . 1 Rammed 71 | . 3 . . 1 . . . 2 . 5 . . . 6 . 6 . . 1 46 1 Targets Rammed 76 | . 3 . . 1 . . . 2 . 5 . . . 6 . 6 . . 1 51 1 Kicked . | . . . . . . . . . . . . . . . . . . . . . . Crushed 5 | . . . . . . . . . . . . . . . . . . . . 5 . Highest Temperature 735 | . 203 240 735 17 201 . . 4 39 96 403 . . 282 321 600 99 147 390 272 210 Average Temperature 101 | . 61 30 365 6 52 . . 3 13 23 106 . . 73 125 208 49 40 114 90 56 Received Heat Transfer 5574 | . 204 324 795 84 12 . 47 72 370 96 360 . . 281 283 206 . . 30 1145 1265 Effects 46 | . . . 22 . . . . . . . 4 . . 3 . 9 . . 4 4 . Shutdowns 11 | . . . 8 . . . . . . . 2 . . . . . . . 1 . . Energy Bleed 12 | . . . 5 . . . . . . . 1 . . . . 3 . . 2 1 . Interference 8 | . . . 2 . . . . . . . . . . 3 . . . . . 3 . Matter Decay 5 | . . . 1 . . . . . . . . . . . . 3 . . 1 . . Short Circuit 3 | . . . 3 . . . . . . . . . . . . . . . . . . Damage (minor) 4 | . . . 1 . . . . . . . 1 . . . . 2 . . . . . Damage (major) 2 | . . . 1 . . . . . . . . . . . . 1 . . . . . Damage (core) 1 | . . . 1 . . . . . . . . . . . . . . . . . . Siege Activations 5 | . . . . . . . . . 1 . . . . 1 . . . . . 2 1 Total Turns 150 | . . . . . . . . . 36 . . . . 17 . . . . . 48 49 Longest Duration 49 | . . . . . . . . . 36 . . . . 17 . . . . . 26 49 Martial Activations . | . . . . . . . . . . . . . . . . . . . . . . Shielding Activations . | . . . . . . . . . . . . . . . . . . . . . . Robots Disrupted . | . . . . . . . . . . . . . . . . . . . . . . Combat Hostiles . | . . . . . . . . . . . . . . . . . . . . . . Robots Corrupted 5 | . . . . . 1 . . . . . . . . . . . . . 1 3 . Combat Hostiles . | . . . . . . . . . . . . . . . . . . . . . . Parts Fried 14 | . . . . . 2 . . . . . 1 . . 1 . 1 . . . 9 . Impact Corruptions 5 | . . . . . . . . . . . . . . . . . . . 1 4 . Robots Melted . | . . . . . . . . . . . . . . . . . . . . . . Combat Hostiles . | . . . . . . . . . . . . . . . . . . . . . . Parts Melted 2 | . 1 . . . . . . . . . . . . . . . . . . 1 . Heat Transferred 1492 | . . 370 1085 . . . . . . . . . . . . . . . . . 37 Parts Sabotaged . | . . . . . . . . . . . . . . . . . . . . . . Parts Stolen . | . . . . . . . . . . . . . . . . . . . . . . Parts Stripped . | . . . . . . . . . . . . . . . . . . . . . . Power Chain Reactions 1 | . . . . . . . . . . . . . . 1 . . . . . . . Alert | -11 -10 -10 -8 -7 -7 -7 -7 -6 -6 -6 -6 -5 -5 -5 -5 -5 -5 -4 -4 -3 -3 ------- Run | Yrd Mat Sub Mat Fac Gar Fac DSF Fac Gar Fac Gar Fac Was Fac Upp Upp Zhi Pro Fac Res Qua Maximum Alert Level 3 | . . . . . 3 1 1 . 3 1 3 1 . . . . . . . 2 . Low Security (%) 67 | 100 100 . 100 100 13 . 21 100 17 80 11 . 100 100 . . . . 100 45 100 Level 1 12 | . . . . . 16 100 78 . 18 19 24 100 . . . . . . . 24 . Level 2 15 | . . . . . 44 . . . 46 . 51 . . . . . . . . 29 . Level 3 4 | . . . . . 24 . . . 17 . 13 . . . . . . . . . . Level 4 . | . . . . . . . . . . . . . . . . . . . . . . Level 5 . | . . . . . . . . . . . . . . . . . . . . . . High Security . | . . . . . . . . . . . . . . . . . . . . . . Max Security . | . . . . . . . . . . . . . . . . . . . . . . Sterilizations 1 | . . . . . . . 1 . . . . . . . . . . . . . . Peak Influence 975 | . 75 . 87 50 846 332 339 132 816 337 975 379 58 165 . . . . 138 634 90 Initial 379 | . . . . . 6 329 179 132 . 318 103 379 58 . . . . . 19 . 29 Average 172 | . 9 . 5 2 517 329 248 32 430 88 486 312 15 41 . . . . 27 246 16 Influence Increases 10527 | . 282 125 347 128 880 3 240 352 886 619 1002 . . 1512 275 365 . 75 391 2660 385 Destroy 0b10 Robot/C 6560 | . 180 20 200 80 400 . 180 220 580 380 540 . . 880 240 340 . 60 180 1820 260 Destroy 0b10 Robot/NC 600 | . 20 . 15 . 35 . . 20 . 20 5 . . 110 5 . . 5 35 295 35 Destroy Leader 1232 | . 46 . 72 20 50 . 40 62 70 106 60 . . 186 30 10 . 10 76 394 . Allied During Kill 79 | . . . . 1 41 . 5 1 10 15 5 . . 1 . . . . . . . Successful Hack 215 | . 6 . 16 27 8 3 . 14 . 46 22 . . 52 . . . . . 3 18 Disable Machine 152 | . . . 8 . . . . 4 8 12 . . . 72 . . . . 12 20 16 Anti-Garrison Action 700 | . . . . . 300 . . . 150 . 250 . . . . . . . . . . Destroy Structure 629 | . . . 6 . 31 . . 1 38 10 105 . . 196 . . . . 88 98 56 Lose Combat Pursuer 360 | . 30 105 30 . 15 . 15 30 30 30 15 . . 15 . 15 . . . 30 . Influence Decreases 10460 | . 282 125 347 116 46 517 233 691 70 1242 220 731 244 1384 403 365 . 35 431 2588 390 Entered New Map 2385 | . . . . . 6 517 153 207 . 498 90 596 186 . 68 . . . 21 . 43 Time Decay 7281 | . 282 125 302 116 . . . 461 . 704 . 135 58 1314 335 325 . 35 400 2396 293 Lost Part 471 | . . . 45 . . . . . 50 . 50 . . 30 . 40 . . 10 192 54 Lost Ally 323 | . . . . . 40 . 80 23 20 40 80 . . 40 . . . . . . . Squads Dispatched 53 | . 1 . . 2 . . 2 6 . 6 . . . 8 . 1 . . 2 22 3 Investigation 11 | . 1 . . 1 . . . 2 . 1 . . . 2 . 1 . . . 1 2 Extermination 20 | . . . . 1 . . . 2 . 3 . . . 5 . . . . 2 6 1 Reinforcement 12 | . . . . . . . 2 . . 1 . . . 1 . . . . . 8 . Assault 1 | . . . . . . . . . . . . . . . . . . . . 1 . Garrison 9 | . . . . . . . . 2 . 1 . . . . . . . . . 6 . Intercept . | . . . . . . . . . . . . . . . . . . . . . . Searches Triggered . | . . . . . . . . . . . . . . . . . . . . . . Construction Impeded . | . . . . . . . . . . . . . . . . . . . . . . Haulers Reinforced 3 | . . . . . . . . . . . . . . 1 . . . . . 2 . Active Scanning Responses . | . . . . . . . . . . . . . . . . . . . . . . Cargo Convoy Interrupts 1 | . . . . . . . . . . . . . . . . . . . . 1 . Stealth | -11 -10 -10 -8 -7 -7 -7 -7 -6 -6 -6 -6 -5 -5 -5 -5 -5 -5 -4 -4 -3 -3 --------- Run | Yrd Mat Sub Mat Fac Gar Fac DSF Fac Gar Fac Gar Fac Was Fac Upp Upp Zhi Pro Fac Res Qua Distress Signals 10 | . . . . . . . . 1 . 2 . . . . . . . . . 7 . Communications Jammed 19 | . . . . . . . . . . . . . . 19 . . . . . . . Distress Signals 17 | . . . . . . . . . . . . . . 17 . . . . . . . Times Spotted 441 | . 14 24 14 4 19 . 10 20 32 19 34 . 4 51 13 21 . 3 17 124 18 Peak Tracking Total 10 | . 3 6 4 3 5 . 3 4 7 3 4 . 4 4 4 10 . 3 3 10 9 Tactical Retreats 19 | . 2 2 2 . 1 . 1 2 2 2 1 . . 1 . 1 . . . 2 . Traps | -11 -10 -10 -8 -7 -7 -7 -7 -6 -6 -6 -6 -5 -5 -5 -5 -5 -5 -4 -4 -3 -3 ------- Run | Yrd Mat Sub Mat Fac Gar Fac DSF Fac Gar Fac Gar Fac Was Fac Upp Upp Zhi Pro Fac Res Qua Traps Triggered 36 | . 6 . 2 2 7 . 3 . 3 2 1 1 . 5 . . . . 3 . 1 Indirectly . | . . . . . . . . . . . . . . . . . . . . . . Trap Hack Attempts . | . . . . . . . . . . . . . . . . . . . . . . Triggered . | . . . . . . . . . . . . . . . . . . . . . . Disarmed . | . . . . . . . . . . . . . . . . . . . . . . Reprogrammed . | . . . . . . . . . . . . . . . . . . . . . . Reused . | . . . . . . . . . . . . . . . . . . . . . . Traps Extracted . | . . . . . . . . . . . . . . . . . . . . . . Installed . | . . . . . . . . . . . . . . . . . . . . . . Triggered . | . . . . . . . . . . . . . . . . . . . . . . Machines | -11 -10 -10 -8 -7 -7 -7 -7 -6 -6 -6 -6 -5 -5 -5 -5 -5 -5 -4 -4 -3 -3 ---------- Run | Yrd Mat Sub Mat Fac Gar Fac DSF Fac Gar Fac Gar Fac Was Fac Upp Upp Zhi Pro Fac Res Qua Machines Disabled 51 | . . . 2 . 4 . . 1 3 3 4 . . 18 . 1 1 . 3 5 6 Max in Single Turn 3 | . . . 1 . 1 . . 1 1 1 1 . . 3 . 1 1 . 3 1 1 Garrison Access 2 | . . . . . . . . . . . . . . . . . . . . 2 . Garrison Relay 8 | . . . . . 4 . . . 1 . 3 . . . . . . . . . . Machines Repaired . | . . . . . . . . . . . . . . . . . . . . . . Machines Dismantled . | . . . . . . . . . . . . . . . . . . . . . . Machines Sabotaged . | . . . . . . . . . . . . . . . . . . . . . . Overloaded Fab Kills . | . . . . . . . . . . . . . . . . . . . . . . Hacking | -11 -10 -10 -8 -7 -7 -7 -7 -6 -6 -6 -6 -5 -5 -5 -5 -5 -5 -4 -4 -3 -3 --------- Run | Yrd Mat Sub Mat Fac Gar Fac DSF Fac Gar Fac Gar Fac Was Fac Upp Upp Zhi Pro Fac Res Qua Machines Accessed 81 | . 7 1 4 3 2 1 . 6 1 10 2 1 . 14 . 2 8 . 2 10 7 Terminals 47 | . 6 . 3 1 2 1 . 2 1 6 2 1 . 8 . 1 . . 2 4 7 Fabricators 3 | . . . . 1 . . . . . 1 . . . 1 . . . . . . . Repair Stations 4 | . 1 . 1 . . . . . . . . . . 2 . . . . . . . Recycling Units 7 | . . . . . . . . 1 . 2 . . . 1 . . . . . 3 . Scanalyzers 2 | . . . . . . . . 1 . . . . . . . . . . . 1 . Garrison Access 8 | . . . . 1 . . . 2 . 1 . . . 2 . . . . . 2 . Total Hacks 249 | . 18 4 24 9 4 1 . 13 2 46 5 2 . 36 . 4 44 . 6 16 15 Successful 193 | . 17 4 20 5 2 1 . 9 1 38 3 1 . 29 . 4 44 . 4 6 5 Failed 56 | . 1 . 4 4 2 . . 4 1 8 2 1 . 7 . . . . 2 10 10 Catastrophic 9 | . . . . . 1 . . 2 . 1 . . . 1 . . . . . 3 1 Database Lockouts . | . . . . . . . . . . . . . . . . . . . . . . Manual 93 | . 6 1 10 5 3 . . 6 2 15 2 2 . 16 . . . . 4 6 15 Terminals 147 | . 16 . 19 1 4 1 . 5 2 37 5 2 . 24 . 3 . . 6 7 15 Fabricators 8 | . . . . 3 . . . . . 4 . . . 1 . . . . . . . Repair Stations 10 | . 2 . 5 . . . . . . . . . . 3 . . . . . . . Recycling Units 13 | . . . . . . . . 2 . 2 . . . 4 . . . . . 5 . Scanalyzers 3 | . . . . . . . . 2 . . . . . . . . . . . 1 . Garrison Access 19 | . . . . 5 . . . 4 . 3 . . . 4 . . . . . 3 . Terminal Hacks 122 | . 10 4 12 1 . 1 . 2 . 23 2 . . 12 . 4 44 . 2 1 4 Record 59 | . 4 4 4 . . . . 2 . 3 . . . 1 . 3 36 . . . 2 Part Schematic 7 | . . . . . . . . . . 3 . . . . . . 4 . . . . Robot Schematic 4 | . . . . . . . . . . 3 . . . 1 . . . . . . . Robot Analysis 6 | . . . 1 . . . . . . . . . . 1 . . 4 . . . . Prototype ID Bank 6 | . 2 . 2 . . . . . . 1 . . . . . . . . 1 . . Open Door 2 | . . . . . . . . . . . . . . . . 1 . . . . 1 Open DSF 4 | . . . . 1 . 1 . . . 1 . . . . . . . . . 1 . Branch Access Points 3 | . . . 1 . . . . . . 1 . . . 1 . . . . . . . Emergency Access Points 3 | . 1 . . . . . . . . . 1 . . 1 . . . . . . . Terminal Index 1 | . . . 1 . . . . . . . . . . . . . . . . . . Recycling Unit Index 1 | . . . . . . . . . . 1 . . . . . . . . . . . Alert Level 1 | . 1 . . . . . . . . . . . . . . . . . . . . Locate Traps 9 | . 2 . . . . . . . . 3 . . . 3 . . . . 1 . . Dispatch Records 1 | . . . 1 . . . . . . . . . . . . . . . . . . Surveillance Status 1 | . . . . . . . . . . 1 . . . . . . . . . . . Assault Status 1 | . . . . . . . . . . 1 . . . . . . . . . . . Recall Investigation 3 | . . . . . . . . . . 3 . . . . . . . . . . . Recall Reinforcements 1 | . . . . . . . . . . 1 . . . . . . . . . . . Hauler Manifests 1 | . . . . . . . . . . . . . . 1 . . . . . . . Zone Layout 7 | . . . 2 . . . . . . 1 . . . 3 . . . . . . 1 Security Stations 1 | . . . . . . . . . . . 1 . . . . . . . . . . Fabricator Hacks 6 | . . . . 2 . . . . . 3 . . . 1 . . . . . . . Network Status 2 | . . . . 1 . . . . . 1 . . . . . . . . . . . Load Schematic 2 | . . . . . . . . . . 1 . . . 1 . . . . . . . Build 2 | . . . . 1 . . . . . 1 . . . . . . . . . . . Repair Station Hacks 10 | . 2 . 5 . . . . . . . . . . 3 . . . . . . . Scan Component 4 | . 1 . 2 . . . . . . . . . . 1 . . . . . . . Repair 4 | . 1 . 2 . . . . . . . . . . 1 . . . . . . . Refit 2 | . . . 1 . . . . . . . . . . 1 . . . . . . . Recycling Unit Hacks 7 | . . . . . . . . 1 . 2 . . . 2 . . . . . 2 . Process 1 | . . . . . . . . . . . . . . 1 . . . . . . . Report Inventory 3 | . . . . . . . . 1 . 2 . . . . . . . . . . . Retrieve Matter 2 | . . . . . . . . . . . . . . . . . . . . 2 . Retrieve Components 1 | . . . . . . . . . . . . . . 1 . . . . . . . Scanalyzer 1 | . . . . . . . . 1 . . . . . . . . . . . . . Insert Component 1 | . . . . . . . . 1 . . . . . . . . . . . . . Garrison Access Hacks 10 | . . . . 2 . . . 2 . 2 . . . 2 . . . . . 2 . Unlock Access 4 | . . . . 1 . . . 1 . 1 . . . 1 . . . . . . . Seal Access 2 | . . . . . . . . . . . . . . . . . . . . 2 . Coupler Status 4 | . . . . 1 . . . 1 . 1 . . . 1 . . . . . . . Unauthorized Hacks 37 | . 5 . 3 . 2 . . 3 1 8 1 1 . 9 . . . . 2 1 1 Terminals 29 | . 5 . 3 . 2 . . 1 1 6 1 1 . 6 . . . . 2 . 1 Track 2 | . 1 . . . 1 . . . . . . . . . . . . . . . . Botnet 26 | . 4 . 3 . 1 . . 1 1 5 1 1 . 6 . . . . 2 . 1 Search 1 | . . . . . . . . . . 1 . . . . . . . . . . . Fabricators 1 | . . . . . . . . . . 1 . . . . . . . . . . . Haulers 1 | . . . . . . . . . . 1 . . . . . . . . . . . Repair Stations . | . . . . . . . . . . . . . . . . . . . . . . Recycling Units 3 | . . . . . . . . 1 . . . . . 1 . . . . . 1 . Mask 3 | . . . . . . . . 1 . . . . . 1 . . . . . 1 . Scanalyzers . | . . . . . . . . . . . . . . . . . . . . . . Garrison Access 4 | . . . . . . . . 1 . 1 . . . 2 . . . . . . . Reprogram 4 | . . . . . . . . 1 . 1 . . . 2 . . . . . . . Data Cores Recovered 2 | . . . . . . . . 1 . . . . . . . . . . 1 . . Used . | . . . . . . . . . . . . . . . . . . . . . . Hacking Detections 53 | . 5 . 3 2 1 . . 6 1 8 1 1 . 11 . 1 . . 2 6 5 Full Trace Events 9 | . 2 . . 1 . . . 1 . . . . . 1 . 1 . . . 1 2 Feedback Events 2 | . . . . . . . . . . . . . . . . . . . . 1 1 Corruption 2 | . . . . . . . . . . . . . . . . . . . . 1 1 Feedback Blocked . | . . . . . . . . . . . . . . . . . . . . . . Robot Schematics Acquired 4 | . . . . . . . . . . 3 . . . 1 . . . . . . . Robots Built 4 | . . . . 2 . . . . . 2 . . . . . . . . . . . Authchips . | . . . . . . . . . . . . . . . . . . . . . . Time 219 | . . . . 67 . . . . . 152 . . . . . . . . . . . Total Robot Build Rating 18 | . . . . 8 . . . . . 10 . . . . . . . . . . . Part Schematics Acquired 7 | . . . . . . . . . . 3 . . . . . . 4 . . . . Parts Built . | . . . . . . . . . . . . . . . . . . . . . . Authchips . | . . . . . . . . . . . . . . . . . . . . . . Time . | . . . . . . . . . . . . . . . . . . . . . . Total Part Build Rating . | . . . . . . . . . . . . . . . . . . . . . . Parts Repaired 4 | . 1 . 2 . . . . . . . . . . 1 . . . . . . . Time 102 | . 13 . 64 . . . . . . . . . . 25 . . . . . . . Parts Recycled . | . . . . . . . . . . . . . . . . . . . . . . Recycled Matter 18 | . . . . . . . . . . . . . . 18 . . . . . . . Retrieved Matter 107 | . . . . . . . . . . . . . . . . . . . . 107 . Retrieved Components . | . . . . . . . . . . . . . . . . . . . . . . Parts Scanalyzed . | . . . . . . . . . . . . . . . . . . . . . . Part Schematics Acquired . | . . . . . . . . . . . . . . . . . . . . . . Parts Damaged . | . . . . . . . . . . . . . . . . . . . . . . Bothacking | -11 -10 -10 -8 -7 -7 -7 -7 -6 -6 -6 -6 -5 -5 -5 -5 -5 -5 -4 -4 -3 -3 ------------ Run | Yrd Mat Sub Mat Fac Gar Fac DSF Fac Gar Fac Gar Fac Was Fac Upp Upp Zhi Pro Fac Res Qua Used RIF Installer 3 | . . . . . 1 . . . 1 . 1 . . . . . . . . . . Hotswap 1 | . . . . . . . . . . . 1 . . . . . . . . . . Patrol Navigation 1 | . . . . . . . . . 1 . . . . . . . . . . . . Robots Hacked 11 | . . . . . . . . 4 . . 6 . 1 . . . . . . . . Non-combat . | . . . . . . . . . . . . . . . . . . . . . . Combat 11 | . . . . . . . . 4 . . 6 . 1 . . . . . . . . Robot Hacks Applied 14 | . . . . . . . . 5 . . 8 . 1 . . . . . . . . parse_system 2 | . . . . . . . . 1 . . . . 1 . . . . . . . . disable_weapons 2 | . . . . . . . . 1 . . 1 . . . . . . . . . . overwrite_iff 5 | . . . . . . . . 3 . . 2 . . . . . . . . . . streamctrl_high 1 | . . . . . . . . . . . 1 . . . . . . . . . . formatsys_high 4 | . . . . . . . . . . . 4 . . . . . . . . . . Relay Couplers Released 36 | . . . . . 20 . . . 7 . 9 . . . . . . . . . . Machine Destruction 30 | . . . . . 17 . . . 4 . 9 . . . . . . . . . . Programmers 6 | . . . . . 3 . . . 3 . . . . . . . . . . . . Attached 5 | . . . . . . . . 1 1 . 2 . . 1 . . . . . . . Fabnet Peak Effective % . | . . . . . . . . . . . . . . . . . . . . . . Robots Rewired 3 | . . . . . 2 . . . 1 . . . . . . . . . . . . Allies Hacked . | . . . . . . . . . . . . . . . . . . . . . . Hacks Repelled . | . . . . . . . . . . . . . . . . . . . . . . Allies | -11 -10 -10 -8 -7 -7 -7 -7 -6 -6 -6 -6 -5 -5 -5 -5 -5 -5 -4 -4 -3 -3 -------- Run | Yrd Mat Sub Mat Fac Gar Fac DSF Fac Gar Fac Gar Fac Was Fac Upp Upp Zhi Pro Fac Res Qua Total Allies 22 | . . . . 2 4 . . 4 3 2 5 . . 2 . . . . . . . Largest Group 4 | . . . . 2 4 4 4 2 3 2 2 . . 2 . . . . . . . Highest-Rated Group 217 | . . . . 64 206 176 176 58 217 125 82 . . 82 . . . . . . . Highest-Rated Ally 95 | . . . . 32 80 80 80 37 95 95 41 . . 41 . . . . . . . Total Orders . | . . . . . . . . . . . . . . . . . . . . . . Ally Attacks 192 | . . . . 1 59 . 21 13 20 24 43 . . 11 . . . . . . . Total Damage 5817 | . . . . 44 1912 . 603 266 776 1015 730 . . 471 . . . . . . . Kills 40 | . . . . . 17 . 2 1 6 8 3 . . 3 . . . . . . . Allies Corrupted 1 | . . . . . . . . . . . . . . 1 . . . . . . . Allies Melted . | . . . . . . . . . . . . . . . . . . . . . . Intel | -11 -10 -10 -8 -7 -7 -7 -7 -6 -6 -6 -6 -5 -5 -5 -5 -5 -5 -4 -4 -3 -3 ------- Run | Yrd Mat Sub Mat Fac Gar Fac DSF Fac Gar Fac Gar Fac Was Fac Upp Upp Zhi Pro Fac Res Qua Active Infowar (turns) 12161 | . . . 217 1093 285 . . . 1058 1513 1297 194 175 2677 1854 984 266 412 136 . . Optics 195 | . . . 195 . . . . . . . . . . . . . . . . . . Sensors 1378 | . . . . 1093 285 . . . . . . . . . . . . . . . . Traps 1691 | . . . . . . . . . . . . . . . . 877 266 412 136 . . Jamming 9068 | . . . . . . . . . 1058 1513 1297 194 175 2677 1854 300 . . . . . ECM 22 | . . . 22 . . . . . . . . . . . . . . . . . . Robot Analysis Total 6 | . . . 1 . . . . . . . . . . 1 . . 4 . . . . Derelict Logs Recovered 5 | . . 1 . . . . . . . . . . . . 2 . . 2 . . . Drone Launches . | . . . . . . . . . . . . . . . . . . . . . . Drone Recoveries . | . . . . . . . . . . . . . . . . . . . . . . Exploration | -11 -10 -10 -8 -7 -7 -7 -7 -6 -6 -6 -6 -5 -5 -5 -5 -5 -5 -4 -4 -3 -3 ------------- Run | Yrd Mat Sub Mat Fac Gar Fac DSF Fac Gar Fac Gar Fac Was Fac Upp Upp Zhi Pro Fac Res Qua Turns Passed 25723 | 73 1101 2596 1753 1136 1412 4 244 824 1457 1513 1297 194 175 3136 1854 984 266 412 814 3745 733 Spaces Moved 12486 | 42 609 1246 588 520 922 4 114 405 732 843 621 113 108 1629 1035 474 161 243 383 1408 286 Core 10 | 6 . . 2 . . . . . . . . . . . . . . . . . 2 Treads 11218 | 36 609 1246 586 303 . . . 404 732 843 621 113 108 1629 1035 474 161 243 383 1408 284 Legs . | . . . . . . . . . . . . . . . . . . . . . . Wheels 1258 | . . . . 217 922 4 114 1 . . . . . . . . . . . . . Hover . | . . . . . . . . . . . . . . . . . . . . . . Flight . | . . . . . . . . . . . . . . . . . . . . . . Fastest Speed 50 | 50 160 160 165 115 115 115 115 115 160 160 160 160 160 160 163 163 163 163 156 145 156 Average Speed 167 | 144 160 190 251 190 115 115 115 159 160 160 160 160 160 162 163 163 163 163 169 175 164 Slowest Speed 1450 | 160 240 240 750 245 115 115 115 160 160 160 160 160 160 330 165 165 163 163 305 247 1450 Overloaded Moves . | . . . . . . . . . . . . . . . . . . . . . . Propulsion Burnouts . | . . . . . . . . . . . . . . . . . . . . . . Robots Hopped . | . . . . . . . . . . . . . . . . . . . . . . Potential Cave-ins 7 | . . . . . . . . . . . . . . . . . . . . 7 . Cave-ins Triggered 2 | . . . . . . . . . . . . . . . . . . . . 2 . Exploration Rate (%) 47 | 4 91 59 30 8 73 . 95 12 66 24 64 3 81 45 95 50 62 53 12 36 25 Regions Visited 21 Branch Regions 6 Pre-discovered Areas 6 | . . 2 . . . . . . . . . . . . . 1 3 . . . . Known Exits Taken 15 | 1 1 1 1 1 . 1 . 1 . 1 . . . 1 1 1 1 1 1 1 . Unknown Exits Taken . | . . . . . . . . . . . . . . . . . . . . . . Scrap Searched 12 | . . 7 . . . . . . . . . . . . 4 1 . . . . . Spaces Dug 54 | . . . 1 . . . . . . 1 19 . . 5 . 8 . . 4 16 . Terrain Destroyed 409 | . . 29 4 . 2 . . 2 3 6 100 . . 98 8 22 . 1 43 59 32 Melee . | . . . . . . . . . . . . . . . . . . . . . . Projectile 169 | . . . 4 . 2 . . 2 3 5 6 . . 35 8 21 . 1 10 51 21 AOE 229 | . . 29 . . . . . . . . 94 . . 63 . . . . 32 . 11 Terrain Rammed . | . . . . . . . . . . . . . . . . . . . . . . Walls Destroyed . | . . . . . . . . . . . . . . . . . . . . . . Machines Disabled . | . . . . . . . . . . . . . . . . . . . . . . Actions | -11 -10 -10 -8 -7 -7 -7 -7 -6 -6 -6 -6 -5 -5 -5 -5 -5 -5 -4 -4 -3 -3 --------- Run | Yrd Mat Sub Mat Fac Gar Fac DSF Fac Gar Fac Gar Fac Was Fac Upp Upp Zhi Pro Fac Res Qua Total 15103 | 55 676 1371 792 648 1164 3 199 522 876 949 759 130 110 1914 1117 584 164 250 472 1942 406 Wait 696 | . 14 13 94 90 78 . 36 66 38 32 20 . . 86 32 31 . 3 9 35 19 Move 12463 | 41 608 1245 587 519 920 3 113 404 730 842 619 113 107 1628 1034 473 160 242 382 1407 286 Hop . | . . . . . . . . . . . . . . . . . . . . . . Pick Up 304 | 7 10 20 33 12 18 . 5 5 15 15 10 4 . 39 4 13 3 . 16 65 10 Fast Attach . | . . . . . . . . . . . . . . . . . . . . . . Attach 180 | 7 4 8 23 4 6 . . 4 8 5 7 5 . 31 3 7 . . 12 32 14 Detach 19 | . 2 2 1 . . . . . 3 1 1 3 1 1 . . . . . 1 3 Swap 127 | . 4 5 6 2 8 . 2 6 6 6 9 1 1 8 3 4 1 . 12 32 11 Drop 151 | . 2 12 11 11 14 . 5 5 6 14 3 4 . 16 1 2 . . 10 33 2 Fire 964 | . 29 60 33 9 50 . 13 30 64 28 88 . 1 99 37 43 . 4 30 286 60 Melee 4 | . . . 4 . . . . . . . . . . . . . . . . . . Ram . | . . . . . . . . . . . . . . . . . . . . . . Kick . | . . . . . . . . . . . . . . . . . . . . . . Crush 76 | . 3 . . 1 . . . 2 . 5 . . . 6 . 6 . . 1 51 1 Escape Stasis 79 | . . . . . 55 . 24 . . . . . . . . . . . . . . Rewire 38 | . . 4 . . 15 . 1 . 6 1 2 . . . 3 5 . 1 . . . Trap . | . . . . . . . . . . . . . . . . . . . . . . Miscellaneous 2 | . . 2 . . . . . . . . . . . . . . . . . . . Route ------- -11/Scrapyard -10/Materials (discovered 6 exits: *Mat x3 / *Min x2 / *Sub) -10/Subcaves (discovered 2 exits: *Mat / *Rec) -8/Materials -7/Factory (discovered 9 exits: Fac x4 / Sto x2 / Low x2 / Gar) -7/Garrison (discovered 3 exits: *Fac x3) -7/Factory -7/DSF -6/Factory -6/Garrison (discovered 3 exits: *Fac x3) -6/Factory (discovered 5 exits: Low x2 / Ext x2 / Gar) -6/Garrison (discovered 2 exits: *Fac x2) -5/Factory -5/Waste -5/Factory (discovered 5 exits: *Fac x2 / *Upp x2 / Gar) -5/Upper Caves -5/Upper Caves (discovered 2 exits: *Fac / *Zhi) -5/Zhirov -4/Proximity Caves -4/Factory -3/Research -3/Quarantine History --------- Turn | Location | Event 38 | -11/Scrapyard | Identified exit to Materials 38 | -11/Scrapyard | Discovered exit to Materials (range 14) 74 | -11/Scrapyard | Entered Materials 74 | -10/Materials | Evolved 1 slot: Utility x1 86 | -10/Materials | Identified exit to Mines 86 | -10/Materials | Discovered exit to Mines (range 15) 310 | -10/Materials | Build established: Hacker-Mutant 597 | -10/Materials | Identified exit to Materials 597 | -10/Materials | Discovered exit to Materials (range 3) 665 | -10/Materials | Repaired Lgt. Treads 761 | -10/Materials | Discovered exit to Mines (range 8) 806 | -10/Materials | Discovered exit to Materials (range 15) 1062 | -10/Materials | Discovered exit to Materials (range 16) 1149 | -10/Materials | Identified exit to Subcaves 1149 | -10/Materials | Discovered exit to Subcaves (range 11) 1175 | -10/Materials | Entered Subcaves 1176 | -10/Subcaves | Approached by a straggling Scientist 1292 | -10/Subcaves | Ambushed by swarm of Subdwellers 1455 | -10/Subcaves | A swath of the cavern ceiling suddenly collapsed 1565 | -10/Subcaves | Identified exit to Recycling 1565 | -10/Subcaves | Discovered exit to Recycling (range 16) 1673 | -10/Subcaves | Disturbed a concealed Subdweller 1883 | -10/Subcaves | Learned location of Zion (-6) 1912 | -10/Subcaves | Visited Clippyterm 1916 | -10/Subcaves | Learned Research machine intel 1916 | -10/Subcaves | Learned 40 Factory zone layouts 2084 | -10/Subcaves | Ambushed by Subdwellers from Twisted Machinery 2110 | -10/Subcaves | Met a Zionite searching for "candidates" 2416 | -10/Subcaves | Identified exit to Materials 2416 | -10/Subcaves | Discovered exit to Materials (range 14) 2508 | -10/Subcaves | Core integrity fell below 50% 2560 | -10/Subcaves | Lost 4 parts (1p1u2w) 3305 | -10/Subcaves | Disturbed a concealed Subdweller 3771 | -10/Subcaves | Entered Materials 3771 | -8/Materials | Evolved 4 slots: Power x1, Utility x2, Weapon x1 4295 | -8/Materials | Lost 4 parts (1p1n2w) 4349 | -8/Materials | Repaired Grenade Launcher 4424 | -8/Materials | Repaired Imp. Heat Sink 4538 | -8/Materials | Identified exit to Factory 4538 | -8/Materials | Discovered exit to Factory (range 15) 5524 | -8/Materials | Entered Factory 5524 | -7/Factory | Evolved 2 slots: Propulsion x1, Utility x1 5525 | -7/Factory | Identified exit to Lower Caves 5525 | -7/Factory | Identified exit to Factory 5525 | -7/Factory | Identified exit to Storage 5666 | -7/Factory | Identified exit to DSF 5918 | -7/Factory | Build established: Hacker-Tank 6008 | -7/Factory | Fabricated Y-54 Guardian (x2) 6644 | -7/Factory | Identified exit to Garrison 6660 | -7/Factory | Entered Garrison 6660 | -7/Garrison | Accompanied by 2 allies 6678 | -7/Garrison | Found embedded Infiltrators 6718 | -7/Garrison | Triggered checkpoint 6768 | -7/Garrison | Garrison Relay disabled 6854 | -7/Garrison | Triggered checkpoint 6854 | -7/Garrison | Triggered checkpoint 6855 | -7/Garrison | Triggered checkpoint 7029 | -7/Garrison | Identified exit to Factory 7029 | -7/Garrison | Discovered exit to Factory (range 12) 7084 | -7/Garrison | Triggered checkpoint 7088 | -7/Garrison | Garrison Relay disabled 7440 | -7/Garrison | Discovered exit to Factory (range 13) 7470 | -7/Garrison | Triggered checkpoint 7496 | -7/Garrison | Garrison Relay disabled 7617 | -7/Garrison | Discovered exit to Factory (range 8) 7723 | -7/Garrison | Garrison Relay disabled 7995 | -7/Garrison | Installed Relay Interface Framework 8072 | -7/Garrison | Entered Factory 8072 | -7/Factory | Accompanied by 4 allies 8075 | -7/Factory | Identified exit to DSF 8076 | -7/Factory | Entered DSF 8076 | -7/DSF | Accompanied by 4 allies 8103 | -7/DSF | Additional patrols routed to DSF 8233 | -7/DSF | Discovered exit to Factory (range 16) 8303 | -7/DSF | Sterilization system engaged 8320 | -7/DSF | Entered Factory 8320 | -6/Factory | Evolved 2 slots: Propulsion x1, Utility x1 8518 | -6/Factory | Build established: Scavenger-Tank 8800 | -6/Factory | Garrison activated, responded to threat 9070 | -6/Factory | Build established: Hacker-Tank 9075 | -6/Factory | Garrison activated, responded to threat 9142 | -6/Factory | Identified exit to Garrison 9144 | -6/Factory | Entered Garrison 9194 | -6/Garrison | Triggered checkpoint 9384 | -6/Garrison | Spotted B-75 Beast 9392 | -6/Garrison | Destroyed B-75 Beast 9438 | -6/Garrison | Triggered checkpoint 9438 | -6/Garrison | Triggered checkpoint 9522 | -6/Garrison | Lost 3 parts (1p2u) 9546 | -6/Garrison | Destroyed 9 combat bots 9607 | -6/Garrison | Expanded RIF knowledge: Patrol Navigation 9682 | -6/Garrison | Identified exit to Factory 9682 | -6/Garrison | Discovered exit to Factory (range 9) 9766 | -6/Garrison | Triggered checkpoint 9986 | -6/Garrison | Build established: Scavenger-Tank 10053 | -6/Garrison | Found embedded Infiltrators 10108 | -6/Garrison | Discovered exit to Factory (range 10) 10176 | -6/Garrison | Triggered checkpoint 10356 | -6/Garrison | Triggered checkpoint 10494 | -6/Garrison | Triggered checkpoint 10510 | -6/Garrison | Discovered exit to Factory (range 11) 10548 | -6/Garrison | Garrison Relay disabled 10567 | -6/Garrison | Build established: Hacker-Tank 10601 | -6/Garrison | Entered Factory 10601 | -6/Factory | Accompanied by 2 allies 10988 | -6/Factory | Identified exit to Lower Caves 10988 | -6/Factory | Identified exit to Extension 11655 | -6/Factory | Build established: Hacker-Gunner 11939 | -6/Factory | Fabricated H-66 Slayer? 12089 | -6/Factory | Garrison activated, responded to threat 12112 | -6/Factory | Identified exit to Garrison 12114 | -6/Factory | Entered Garrison 12114 | -6/Garrison | Accompanied by 2 allies 12182 | -6/Garrison | P-60 Hacker assimilated allied Slayer 5b 12234 | -6/Garrison | Triggered checkpoint 12289 | -6/Garrison | Learned Factory security intel 12307 | -6/Garrison | Garrison Relay disabled 12566 | -6/Garrison | Triggered checkpoint 12714 | -6/Garrison | Identified exit to Factory 12714 | -6/Garrison | Discovered exit to Factory (range 10) 12748 | -6/Garrison | Triggered checkpoint 12784 | -6/Garrison | Garrison Relay disabled 12922 | -6/Garrison | Expanded RIF knowledge: Hotswap 13014 | -6/Garrison | Triggered checkpoint 13108 | -6/Garrison | Build established: Bothacker-Gunner 13200 | -6/Garrison | Triggered checkpoint 13231 | -6/Garrison | Garrison Relay disabled 13270 | -6/Garrison | Discovered exit to Factory (range 12) 13339 | -6/Garrison | P-60 Hacker assimilated allied Soldier 5c 13411 | -6/Garrison | Entered Factory 13411 | -5/Factory | Evolved 2 slots: Utility x2 13592 | -5/Factory | Identified exit to Factory 13592 | -5/Factory | Discovered exit to Factory (range 16) 13605 | -5/Factory | Sucked down chute 13605 | -5/Factory | Entered Waste 13620 | -5/Waste | EMP discharged 13636 | -5/Waste | Spotted C-40 Crusher 13673 | -5/Waste | Spotted C-40 Crusher 13676 | -5/Waste | Spotted C-40 Crusher 13684 | -5/Waste | Spotted C-40 Crusher 13687 | -5/Waste | Crushed by Compactor (1 part destroyed, 1 dropped) 13692 | -5/Waste | Crushed by Compactor (0 parts destroyed, 1 dropped) 13695 | -5/Waste | Crushed by Compactor (1 part destroyed, 2 dropped) 13698 | -5/Waste | Spotted C-40 Crusher 13702 | -5/Waste | Spotted C-40 Crusher 13703 | -5/Waste | Crushed by Compactor (0 parts destroyed, 1 dropped) 13720 | -5/Waste | EMP discharged 13764 | -5/Waste | Identified exit to Factory 13764 | -5/Waste | Discovered exit to Factory (range 10) 13766 | -5/Waste | Crushed by Compactor (0 parts destroyed, 1 dropped) 13780 | -5/Waste | Entered Factory 13986 | -5/Factory | Build established: Hacker-Mutant 14095 | -5/Factory | Repaired Focal Shield 14238 | -5/Factory | Discovered exit to Factory (range 8) 14416 | -5/Factory | Identified exit to Garrison 14551 | -5/Factory | System corruption reached 10% 14758 | -5/Factory | Build established: Hacker-Tank 15492 | -5/Factory | Identified exit to Upper Caves 15816 | -5/Factory | Spotted B-75 Beast 15862 | -5/Factory | Destroyed B-75 Beast 16329 | -5/Factory | Discovered exit to Factory (range 15) 16916 | -5/Factory | Entered Upper Caves 17246 | -5/Upper Caves | Identified exit to Upper Caves 17459 | -5/Upper Caves | Attracted the attention of an 0b10 checkpoint 17584 | -5/Upper Caves | Entered a destroyed Warlord outpost 17813 | -5/Upper Caves | Encountered a Warlord checkpoint 18120 | -5/Upper Caves | Learned Factory interactive machine intel 18770 | -5/Upper Caves | Entered another Upper Caves area 19002 | -5/Upper Caves | Discovered exit to Factory (range 7) 19029 | -5/Upper Caves | Ambushed by wild Derelicts 19272 | -5/Upper Caves | Destroyed 9 combat bots 19346 | -5/Upper Caves | Learned Research trap positions 19390 | -5/Upper Caves | Attracted the attention of an 0b10 base 19429 | -5/Upper Caves | Lost 3 parts (1u2w) 19741 | -5/Upper Caves | Identified exit to Zhirov 19741 | -5/Upper Caves | Discovered exit to Zhirov (range 7) 19754 | -5/Upper Caves | Entered Zhirov 19754 | -5/Zhirov | Identified exit to Proximity Caves 19754 | -5/Zhirov | Discovered exit to Proximity Caves (range 3) 19784 | -5/Zhirov | Met Zhirov 19820 | -5/Zhirov | Learned location of Quarantine (-3) 19820 | -5/Zhirov | Learned location of Testing (-2) 19820 | -5/Zhirov | Learned location of Command (-1) 19854 | -5/Zhirov | Zhirov requested help retrieving the SGEMP Prototype 20020 | -5/Zhirov | Entered Proximity Caves 20251 | -4/Proximity Caves | Learned Research emergency access door positions 20432 | -4/Proximity Caves | Entered Factory 20432 | -4/Factory | Evolved 2 slots: Utility x1, Weapon x1 20433 | -4/Factory | Loaded intel: 53 interactive machine locations 21204 | -4/Factory | Identified exit to Research 21204 | -4/Factory | Discovered exit to Research (range 15) 21246 | -4/Factory | Entered Research 21246 | -3/Research | Evolved 2 slots: Propulsion x1, Utility x1 21247 | -3/Research | Loaded intel: 95 trap records 21249 | -3/Research | Loaded intel: 110 machine locations 21449 | -3/Research | Identified exit to Quarantine 21449 | -3/Research | Discovered exit to Quarantine (range 15) 21566 | -3/Research | Spotted B-86 Titan 21601 | -3/Research | Destroyed B-86 Titan 22006 | -3/Research | Build established: Scavenger-Tank 22054 | -3/Research | Crushed by falling debris 22063 | -3/Research | Crushed by falling debris 22441 | -3/Research | Garrison activated, responded to threat 22546 | -3/Research | Destroyed 9 combat bots 22617 | -3/Research | Cargo convoy interrupted 22634 | -3/Research | System corruption reached 10% 22784 | -3/Research | Destroyed 7 combat bots 22996 | -3/Research | First assault squad dispatched 23773 | -3/Research | Spotted B-86 Titan 23989 | -3/Research | Destroyed B-86 Titan 24015 | -3/Research | Lost 3 parts (1n1u1w) 24485 | -3/Research | Destroyed 7 combat bots 24991 | -3/Research | Entered Quarantine 25083 | -3/Quarantine | Found Alien Reactor 25089 | -3/Quarantine | Identified Matter Drive 25118 | -3/Quarantine | Spotted Alpha 7 25187 | -3/Quarantine | Destroyed Alpha 7 25221 | -3/Quarantine | Found Alien Launcher 25223 | -3/Quarantine | Identified Sigix Terminator 25424 | -3/Quarantine | Found Alien Artifact 25434 | -3/Quarantine | Identified Subatomic Replicator 25546 | -3/Quarantine | Met incapacitated Sigix Warrior 25546 | -3/Quarantine | Lockdown squad dispatched 25549 | -3/Quarantine | Acquired the access code to the Sigix quarantine chamber 25565 | -3/Quarantine | Unlocked Sigix quarantine chamber 25576 | -3/Quarantine | Found Sigix Containment Pod 25651 | -3/Quarantine | Spotted Lightning 25651 | -3/Quarantine | Spotted Lightning 25654 | -3/Quarantine | Spotted Lightning 25672 | -3/Quarantine | System corruption reached 30% 25688 | -3/Quarantine | Build established: Hacker-Tank 25719 | -3/Quarantine | Core integrity fell below 50% 25724 | -3/Quarantine | Fired Sigix Terminator 25724 | -3/Quarantine | Destroyed Lightning 25724 | -3/Quarantine | Destroyed Lightning 25724 | -3/Quarantine | Destroyed self with Sigix Terminator Last Messages --------------- 25715_ Adv. Heat Sink destroyed. 25715_ Penetrated by EMDS Slug. 25715_ K-01 Serf collects debris. 25716_ U-05 Engineer builds a Wall. 25717_ P-80 Master resets U-05 Engineer, system corruption cleaned. 25718_ Enh. Hardcell Cannon destroyed. 25718_ Penetrated by EMDS Slug. 25719_ K-01 Serf collects debris. 25722_ Penetrated by EMDS Slug. 25722_ Enh. Hardcell Cannon destroyed. 25722_ Rnf. Antimatter Reactor destroyed. 25723_ K-01 Serf collects debris. 25723_ Penetrated by EMDS Slug. 25724_ Sigix Terminator expended. 25724_ Lightning destroyed. 25724_ Destroyed Lgt. Ion Engine. 25724_ U-05 Engineer destroyed. 25724_ Lightning destroyed. [Achievement: Punisher] Map ----- +----------------------------------------------------+ | # ! #!! %???????????????????????? | | ##########!* """ """ ?????????????????????????? | | # # """ ""???????????????????????????? | | # """ # """ """ "????????????????????????? | | # """ + ???????????????????????? | | # """ # ???????????????????????? | | # # #####+#######????????????????????? | | # """ ! # #?# #????????????????????? | | # """ # #?# +??#?????????????????? | | # """ # #?# " #? #?????????????????? | | # # #?# T " " # #?????????????????? | | ####+##+## ### """ + #?????????????????? | | ???# ### """ """ # #?????????????????? | | ???# ### "" # ####??????????????? | | ???# + + +??????????????? | | ?##########+#########+##### #??????????????? | | ?# #= ### #??????????????? | | ?# ""# +??????????????? | | ?# ""# ! #???????????????? | | ?# T"#!!!! #???????????????? | | ?# """ """ """ ""# !! ;;;;;###??????????????? | | ?# """ """ """ ""##!*=#;;;;;;######+##????????? | | ?# """ """ """ ##!!![ = / ????????? | | ????################ui*k ????????? | | ????########### ####!hk% ""??????????? | | ????#"""""""""" ## #%[!@ = ""??????????? | | ????#"""""""" " ###=pp########## "???????????? | | ????#""" " T"""#"#![!!!#?????????????????????? | | ????#"" " ====*## #????????????????????? | | ????#"" " ! **=#?##????????????????????? | | ????#"" " [ #???????????????????????? | | ????#""" " T#T# ####???????????????????????? | | ????#"""""""""### ## #??????????????????????? | | ????#"" """"""#?# #####??????????????????????? | | ????###########?#####??????????????????????????? | | ???????????????????????????????????????????????? | | ???????????????????????????????????????????????? | | ???????????????????????????????????????????????? | | ???????????????????????????????????????????????? | | ???????????????????????????????????????????????? | | ???????????????????????????????????????????????? | | ???????????????????????????????????????????????? | | ???????????????????????????????????????????????? | | ???????????????????????????????????????????????? | | ???????????????????????????????????????????????? | | | | | | | | | | | +----------------------------------------------------+ Best States ------------- Heat Dissipation 103 Energy Generation 41 Energy Capacity 1160 Matter Stores 900 Matter Capacity 1050 Sight Range 21 Robot Scan Range 15 Terrain Scan Density 10 ECM Strength 2 Jamming Range 12 Base Temperature (-) 200 EM Shielding 2 Armor Coverage 1200 Resistance: KI 60 Resistance: TH 35 Resistance: EX 35 Resistance: EM 35 Resistance: I 35 Resistance: S 35 Resistance: P 35 Weapon Shielding 90 Evasion (%) 40 Targeting Accuracy 28 Recoil Reduction 5 Kinecelleration 40 Offensive Hacking 34 Defensive Hacking 12 Relay Coupler Types 1 Relay Coupler Value 45 Authchip Count 1 Item Schematics ----------------- Imp. Corruption Screen | -6/Factory | Hacked Thermal Shield | -6/Factory | Hacked Fission Core | -6/Factory | Hacked Assault Drone Bay | -5/Zhirov | Free Exp. Heat Sink | -5/Zhirov | Free Exp. Optical Array | -5/Zhirov | Free Imp. Arc Thrower | -5/Zhirov | Free Robot Schematics ------------------ H-66 Slayer | -6/Factory | Hacked P-60 Hacker | -6/Factory | Hacked B-48 Gladiator | -6/Factory | Hacked E-15 Imp | -5/Factory | Hacked Fabricated ------------ Y-54 Guardian | x2 | -7/Factory | Preloaded H-66 Slayer | x2 | -6/Factory Repaired ---------- Lgt. Treads | 55% | -10/Materials Grenade Launcher | 6% | -8/Materials Imp. Heat Sink | 30% | -8/Materials Focal Shield | 48% | -5/Factory Alien Tech Used ----------------- Matter Drive Sigix Terminator Subatomic Replicator Achievements -------------- Assimilation Complete Infiltrator Maximum Efficiency Punisher Shopping List Challenges ------------ None Game ------ Seed MappingChromaticTendrils Manual? 0 Play Time 05:19:07 Cumulative 34.6 hours Start 2025.09.03 @ 19:31:47 End 2025.09.05 @ 19:55:29 Sessions 7 Manual Loads 0 Difficulty Explorer Special Mode None Game No. 15 Rogue 0 Adventurer 0 Explorer 15 Win Type - Total 2 Types 1/0/1/0/0/0/0/0/0/0 Lore% 23 Gallery% 39 Achievement% 47 Wizard Run 0 Options --------- Layout 1 ASCII 0 Keyboard 0 Movement Numpad Keybinds 0 Fullscreen 1 Font 24/Proggy Map View 50x35 Zoom Use 0% Tactical HUD 1 Map Filters NONE Filters NONE Steam 1 RUN: 22c1f9b4-8e2a-410c-91d1-78d2aae3f604